Workbook

Sheet Fixed P&Gs
H1: ORB.INV_02.22
B2: CAPRICORN DISTRICT MUNICIPALITY - LIMPOPO PROVINCE
B3: SCHEDULE OF QUANTITIES:
B4: INVERAAN VILLAGE WATER SUPPLY | F4: CONTRACT No INF-W27/2022/2023
B5: SCHEDULE A: PRELIMINARY AND GENERAL OBLIGATIONS
B6: SECTION 1: PRELIMINARY AND GENERAL - FIXED CHARGE AND VALUE RELATED OBLIGATIONS
B8: ITEM NUMBER | C8: PAYMENT CLAUSE | D8: DESCRIPTION | E8: UNIT | F8: QUANTITY | G8: RATE | H8: AMOUNT
B9: A.1 | D9: FIXED CHARGE AND VALUE RELATED ITEMS:
D10: (As specified in SABS 1200 A, SABS 1200 AB and the Project Specifications.) | H10: =IF(F10="",IF(G10="","","Rate Only"),F10*G10) -> 
H11: =IF(F11="",IF(G11="","","Rate Only"),F11*G11) -> 
B12: 1.1 | D12: Contractual Requirements: | H12: =IF(F12="",IF(G12="","","Rate Only"),F12*G12) -> 
B13: 1.1.1 | C13: 8.3.1 | D13: Fixed charge contractual requirements. | E13: Sum | F13: 1.00 | G13: 0 | H13: =G13*F13 -> 0
B14: 1.1.2 | C14: 8.3.1 | D14: Value related contractual requirements. | E14: Sum | F14: 1.00 | G14: 0 | H14: =G14*F14 -> 0
B16: 1.2 | D16: Facilities for Engineer: | H16: =G16*F16 -> 0
B17: 1.2.1 | C17: 8.3.2.1 a | D17: Furnished office - 1 No. | E17: Sum | F17: 1.00 | G17: 0 | H17: 0
B18: 1.2.2 | C18: 8.3.2.1 c | D18: Name board | E18: Sum | F18: 2.00 | G18: 0 | H18: 0
B19: 1.2.3 | C19: PSA 14.1 a | D19: Provision of survey equipment. | E19: Sum | F19: 1.00 | G19: 0 | H19: 0
B20: 1.2.4 | C20: 8.3.2.1 e | D20: Cellphone costs | E20: Sum | F20: 1.00 | G20: 25,000.00 | H20: =G20*F20 -> 25,000.00
B21: 1.3 | D21: Facilities for Contractor:
B22: 1.3.1 | C22: 8.3.2.2 a | D22: Offices and storage sheds | E22: Sum | F22: 1.00 | G22: 0 | H22: =G22*F22 -> 0
B23: 1.3.2 | C23: 8.3.2.2 b | D23: Workshops | E23: Sum | F23: 1.00 | G23: 0 | H23: =G23*F23 -> 0
B24: 1.3.3 | C24: 8.3.2.2 c | D24: Laboratories | E24: Sum | F24: 1.00 | G24: 0 | H24: 0
B25: 1.3.4 | C25: 8.3.2.2 d | D25: Living accommodation | E25: Sum | F25: 1.00 | G25: 0 | H25: 0
B26: 1.3.5 | C26: 8.3.2.2 e | D26: Ablution and latrine facilities | E26: Sum | F26: 1.00 | G26: 0 | H26: 0
B27: 1.3.6 | C27: 8.3.2.2 f | D27: Tools and equipment | E27: Sum | F27: 1.00 | G27: 0 | H27: 0
B28: 1.3.7 | C28: 8.3.2.2 g | D28: Water supplies, electric power and communications | E28: Sum | F28: 1.00 | G28: 0 | H28: 0
B29: 1.3.8 | C29: 8.3.2.2 h | D29: Dealing with water | E29: Sum | F29: 1.00 | G29: 0 | H29: 0
B30: 1.3.9 | C30: 8.3.2.2 i | D30: Access | E30: Sum | F30: 1.00 | G30: 0 | H30: 0
B31: 1.3.10 | C31: 8.3.2.2 j | D31: Plant | E31: Sum | F31: 1.00 | G31: 0 | H31: 0
B32: 1.3.11 | C32: PSA 14.2 a | D32: Materials on site storage and protection. | E32: Sum | F32: 1.00 | G32: 0 | H32: 0
B33: 1.3.12 | C33: PSA 14.2 b | D33: Accommodation of traffic. | E33: Sum | F33: 1.00 | G33: 0 | H33: 0
B34: 1.3.13 | C34: PSA 14.2 c | D34: Labour intensive activity training. | E34: Sum | F34: 1.00 | G34: 0 | H34: 0
G35: 0 | H35: 0
B36: 1.4 | C36: 8.3.3 | D36: Other Fixed Charge Obligations: | E36: Sum | F36: 1.00 | G36: 0 | H36: 0
G37: 0 | H37: 0
B38: 1.5 | C38: 8.3.4 | D38: Removal of Site Establishment: | E38: Sum | F38: 1.00 | G38: 0 | H38: 0
G39: 0 | H39: 0
B40: 1.6 | C40: PSA 14.3 a | D40: Environmental Management: | E40: Sum | F40: 1.00 | G40: 0 | H40: 0
B42: TOTAL SCHEDULE A - SECTION 1 CARRIED TO SUMMARY: | H42: 0
B44: INVERAAN CONT B WS BoQ

Sheet Time Related
H1: ='Fixed P&Gs'!H1 -> ORB.INV_02.22
B2: ='Fixed P&Gs'!B2 -> CAPRICORN DISTRICT MUNICIPALITY - LIMPOPO PROVINCE
B3: ='Fixed P&Gs'!B3 -> SCHEDULE OF QUANTITIES:
B4: ='Fixed P&Gs'!B4 -> INVERAAN VILLAGE WATER SUPPLY | F4: ='Fixed P&Gs'!F4 -> CONTRACT No INF-W27/2022/2023
B5: SCHEDULE A: PRELIMINARY AND GENERAL OBLIGATIONS
B6: SECTION 2: PRELIMINARY AND GENERAL - TIME RELATED OBLIGATIONS
B8: ITEM NUMBER | C8: PAYMENT CLAUSE | D8: DESCRIPTION | E8: UNIT | F8: QUANTITY | G8: RATE | H8: AMOUNT
B9: A.2 | D9: TIME RELATED ITEMS: | H9: =IF(F9="",IF(G9="","","Rate Only"),F9*G9) -> 
D10: (As specified in SABS 1200 A, SABS 1200 AB and the Project Specifications.) | H10: =IF(F10="",IF(G10="","","Rate Only"),F10*G10) -> 
H11: =IF(F11="",IF(G11="","","Rate Only"),F11*G11) -> 
B12: 2.1 | D12: Contractual Requirements: | H12: =IF(F12="",IF(G12="","","Rate Only"),F12*G12) -> 
B13: 2.1.1 | C13: 8.4.1 | D13: Time related contractual requirements. | E13: Month | F13: 15.00 | G13: 0 | H13: =G13*F13 -> 0
B15: 2.2 | D15: Facilities for Engineer:
B16: 2.2.1 | C16: 8.4.2.1 a | D16: Furnished office - 1 No. | E16: Month | F16: =IF($F$13="","",IF(E16="","",$F$13)) -> 15.00 | G16: 0 | H16: =G16*F16 -> 0
B17: 2.2.2 | C17: 8.4.2.1 c | D17: Name boards - 2 No. | E17: Month | F17: =IF($F$13="","",IF(E17="","",$F$13)) -> 15.00 | G17: 0 | H17: 0
B18: 2.2.3 | C18: 8.4.2.1 d | D18: Survey assistants and material. | E18: Month | F18: 15.00 | G18: 0 | H18: 0
B19: 2.2.4 | C19: 8.4.2.1e | D19: Cellphone costs, including pro-rata | E19: Month | F19: 15.00 | G19: 1,000.00 | H19: 15,000.00
B20: 2.3 | D20: Facilities for Contractor:
B21: 2.3.1 | C21: 8.4.2.2 a | D21: Offices and storage sheds. | E21: Month | F21: 15.00 | G21: 0 | H21: 0
B22: 2.3.2 | C22: 8.4.2.2 b | D22: Workshops. | E22: Month | F22: 15.00 | G22: 0 | H22: 0
B23: 2.3.3 | C23: 8.4.2.2 c | D23: Laboratories. | E23: Month | F23: 15.00 | G23: 0 | H23: 0
B24: 2.3.4 | C24: 8.4.2.2 d | D24: Living accommodation. | E24: Month | F24: 15.00 | G24: 0 | H24: 0
B25: 2.3.5 | C25: 8.4.2.2 e | D25: Ablution and latrine facilities. | E25: Month | F25: 15.00 | G25: 0 | H25: 0
B26: 2.3.6 | C26: 8.4.2.2 f | D26: Tools and equipment. | E26: Month | F26: 15.00 | G26: 0 | H26: 0
B27: 2.3.7 | C27: 8.4.2.2 g | D27: Water supplies, electric power and communications. | E27: Month | F27: 15.00 | G27: 0 | H27: 0
B28: 2.3.8 | C28: 8.4.2.2 h | D28: Dealing with water. | E28: Month | F28: 15.00 | G28: 0 | H28: 0
B29: 2.3.9 | C29: 8.4.2.2 i | D29: Access. | E29: Month | F29: 15.00 | G29: 0 | H29: 0
B30: 2.3.10 | C30: 8.4.2.2 j | D30: Plant. | E30: Month | F30: 15.00 | G30: 0 | H30: 0
B32: 2.4 | C32: 8.4.3 | D32: Supervision for Duration of the Contract: | E32: Month | F32: 15.00 | G32: 0 | H32: 0
B34: 2.5 | C34: 8.4.4 | D34: Overhead Costs for the Duration of the Contract: | E34: Month | F34: 15.00 | G34: 0 | H34: 0
B36: 2.6 | C36: 8.4.5 | D36: Other Time Related Obligations: | E36: Month | F36: 15.00 | G36: 0 | H36: 0
B38: 2.7 | C38: PSA 14.3 b | D38: Environmental Management: | E38: Month | F38: 15.00 | G38: 0 | H38: 0
B40: 2.8 | C40: PSA 14.4 a | D40: Construction Management Administration: | E40: Month | F40: 15.00 | G40: 0 | H40: 0
H41: =IF(F41="",IF(G41="","","Rate Only"),F41*G41) -> 
B42: TOTAL SCHEDULE A - SECTION 2 CARRIED TO SUMMARY: | H42: 0
B44: ='Fixed P&Gs'!$B$44:$G$44 -> INVERAAN CONT B WS BoQ

Sheet Prov Sums
H1: ='Fixed P&Gs'!H1 -> ORB.INV_02.22
B2: ='Fixed P&Gs'!B2 -> CAPRICORN DISTRICT MUNICIPALITY - LIMPOPO PROVINCE
B3: ='Fixed P&Gs'!B3 -> SCHEDULE OF QUANTITIES:
B4: ='Fixed P&Gs'!B4 -> INVERAAN VILLAGE WATER SUPPLY | F4: ='Fixed P&Gs'!F4:H4 -> CONTRACT No INF-W27/2022/2023
B5: SCHEDULE A: PRELIMINARY AND GENERAL OBLIGATIONS
B6: SECTION 3: PRELIMINARY AND GENERAL - PROVISIONAL SUMS
B8: ITEM NUMBER | C8: PAYMENT CLAUSE | D8: DESCRIPTION | E8: UNIT | F8: QUANTITY | G8: RATE | H8: AMOUNT
B9: A.3 | D9: PROVISIONAL SUMS:
D10: (As specified in SABS 1200 A and the Project Specifications.)
B12: 3.1 | C12: 8.5 b | D12: Community Liaison Officer:
B13: 3.1.1 | C13: PSA 14.5 a | D13: Provision for the employment of CLO. | E13: Prov. Sum | F13: 15.00 | G13: R 7,000.00 | H13: =IF(G13="",IF(F13="","","Rate Only"),F13*G13) -> R 105,000.00
B14: 3.1.2 | C14: PSA 14.5 b | D14: Overheads, charges and profit on item 3.1.1. | E14: % | F14: =H13 -> 105,000.00 | H14: =H13*G14 -> R 0.00
B16: 3.2 | C16: 8.5 b | D16: PSC Attendance at Site Meeting:
B17: 3.2.1 | C17: PSA 14.5 c | D17: Provision for the attendance of PSC members. | E17: Prov. Sum | F17: 1.00 | G17: =250*5*6*2 -> R 15,000.00 | H17: =IF(G17="",IF(F17="","","Rate Only"),F17*G17) -> R 15,000.00
B18: 3.2.2 | C18: PSA 14.5 d | D18: Overheads, charges and profit on item 3.2.1. | E18: % | F18: =H17 -> 15,000.00 | H18: =H17*G18 -> R 0.00
B20: 3.3 | C20: 8.5 b | D20: Basic Skills and Construction Training:
B21: 3.3.1 | C21: PSA 14.5 e | D21: Provision for basic skills and construction site safety training. | E21: Prov. Sum | F21: 1.00 | G21: R 100,000.00 | H21: =IF(G21="",IF(F21="","","Rate Only"),F21*G21) -> R 100,000.00
B22: 3.3.2 | C22: PSA 14.5 f | D22: Overheads, charges and profit on item 3.3.1. | E22: % | F22: =H21 -> 100,000.00 | H22: =H21*G22 -> R 0.00
B24: 3.4 | C24: 8.5 b | D24: Relocation/Protection of Existing Services:
B25: 3.4.1 | C25: PSA 14.5 g | D25: Provision for relocation/protection of existing services. | E25: Prov. Sum | F25: 1.00 | G25: R 25,000.00 | H25: =IF(G25="",IF(F25="","","Rate Only"),F25*G25) -> R 25,000.00
B26: 3.4.2 | C26: PSA 14.5 h | D26: Overheads, charges and profit on item 3.4.1. | E26: % | F26: =H25 -> 25,000.00 | H26: =H25*G26 -> R 0.00
B28: 3.5 | C28: 8.5 b | D28: Additional Tests required by Engineer:
B29: 3.5.1 | C29: PSA 14.5 i | D29: Provision for additional tests. | E29: Prov. Sum | F29: 1.00 | G29: R 40,000.00 | H29: =IF(G29="",IF(F29="","","Rate Only"),F29*G29) -> R 40,000.00
B30: 3.5.2 | C30: PSA 14.5 j | D30: Overheads, charges and profit on item 3.5.1. | E30: % | F30: =H29 -> 40,000.00 | H30: =H29*G30 -> R 0.00
H31: =IF(G31="","",G31*F31) -> 
B32: 3.6 | C32: 8.5 b | D32: Occupational Health and Safety Audits:
B33: 3.6.1 | C33: PSA 14.5 k | D33: Provision for Occupational Health and Safety audits on site. | E33: Prov. Sum | F33: 1.00 | G33: R 100,000.00 | H33: =IF(G33="",IF(F33="","","Rate Only"),F33*G33) -> R 100,000.00
B34: 3.6.2 | C34: PSA 14.5 l | D34: Overheads, charges and profit on item 3.6.1. | E34: % | F34: =H33 -> 100,000.00 | H34: =H33*G34 -> R 0.00
H35: =IF(F35="",IF(G35="","","Rate Only"),F35*G35) -> 
B36: 3.6 | C36: 8.5 b | D36: Socail Facilitation
B37: 3.6.1 | C37: PSA 14.5 k | D37: Provision for Social Facilitation by a Client Appointed Service Provider . | E37: Prov. Sum | F37: 1.00 | G37: R 180,000.00 | H37: =IF(G37="",IF(F37="","","Rate Only"),F37*G37) -> R 180,000.00
B38: 3.6.2 | C38: PSA 14.5 l | D38: Overheads, charges and profit on item 3.6.1. | E38: % | F38: =H37 -> 180,000.00 | H38: =H37*G38 -> R 0.00
B40: TOTAL SCHEDULE A - SECTION 3 CARRIED TO SUMMARY:
B42: ='Fixed P&Gs'!$B$44:$G$44 -> INVERAAN CONT B WS BoQ

Sheet PC Items
H1: ='Fixed P&Gs'!H1 -> ORB.INV_02.22
B2: ='Fixed P&Gs'!B2 -> CAPRICORN DISTRICT MUNICIPALITY - LIMPOPO PROVINCE
B3: ='Fixed P&Gs'!B3 -> SCHEDULE OF QUANTITIES:
B4: ='Fixed P&Gs'!B4 -> INVERAAN VILLAGE WATER SUPPLY | F4: ='Fixed P&Gs'!F4:H4 -> CONTRACT No INF-W27/2022/2023
B5: SCHEDULE A: PRELIMINARY AND GENERAL OBLIGATIONS
B6: SECTION 4: PRELIMINARY AND GENERAL - PRIME COST SUMS
B8: ITEM NUMBER | C8: PAYMENT CLAUSE | D8: DESCRIPTION | E8: UNIT | F8: QUANTITY | G8: RATE | H8: AMOUNT
B9: A.4 | D9: PRIME COST ITEMS:
D10: (As specified in SABS 1200 A and the Project Specifications.)
B12: 4.1 | C12: 8.6 | D12: Pipe Specials:
B13: 4.1.1 | C13: PSA 14.6 k | D13: Provision of pipe specials, valves and fittings for reservoir connections. | E13: PC Sum | F13: 1.00 | G13: 50,000.00 | H13: =IF(G13="",IF(F13="","","Rate Only"),F13*G13) -> 50,000.00
B14: 4.1.2 | C14: PSA 14.6 l | D14: Overheads, charges and profit on item 4.1.1. | E14: % | F14: =H13 -> 50,000.00 | H14: =G14*H13 -> 0
H23: =IF(G23="","",G23*F23) -> 
H25: =IF(G25="","",G25*F25) -> 
B27: TOTAL SCHEDULE A - SECTION 4 CARRIED TO SUMMARY: | H27: 0
B29: ='Fixed P&Gs'!$B$44:$G$44 -> INVERAAN CONT B WS BoQ

Sheet Dayworks
B2: ='Fixed P&Gs'!B2 -> CAPRICORN DISTRICT MUNICIPALITY - LIMPOPO PROVINCE | H2: ='Fixed P&Gs'!H1 -> ORB.INV_02.22
B3: ='Fixed P&Gs'!B3 -> SCHEDULE OF QUANTITIES:
B4: ='Fixed P&Gs'!B4 -> INVERAAN VILLAGE WATER SUPPLY | F4: ='Fixed P&Gs'!F4:H4 -> CONTRACT No INF-W27/2022/2023
B5: SCHEDULE A: PRELIMINARY AND GENERAL OBLIGATIONS
B6: SECTION 5: PRELIMINARY AND GENERAL - DAYWORKS
B8: ITEM NUMBER | C8: PAYMENT CLAUSE | D8: DESCRIPTION | E8: UNIT | F8: QUANTITY | G8: RATE | H8: AMOUNT
B9: A.5 | D9: DAYWORK: | H9: =IF(F9="",IF(E9="","","Rate Only"),"") -> 
D10: (As specified in SABS 1200 A and the Project Specifications.)
B12: 5.1 | C12: 8.7 | D12: Labour - Normal Working Hours: [Provisional]
B13: 5.1.1 | D13: Skilled Labour (Artisan). | E13: hr | H13: Rate Only
B14: 5.1.2 | D14: Semi-skilled Labour. | E14: hr | H14: Rate Only
B15: 5.1.3 | D15: Unskilled Labour. | E15: hr | H15: Rate Only
B16: 5.1.4 | D16: Foreman. | E16: hr | H16: Rate Only
B17: 5.1.5 | D17: Extra-over rate for items 5.1.1 to 5.1.4 for work during non working hours. | E17: % | H17: Rate Only
B19: 5.2 | C19: 8.7 | D19: Materials: [Provisional]
B20: 5.2.1 | D20: Allowance for Materials used under Dayworks. | E20: Sum | F20: 1.00 | G20: 50,000.00 | H20: =IF(G20="",IF(F20="","","Rate Only"),F20*G20) -> 50,000.00
B21: 5.2.2 | D21: Overheads, Handling and all Charges on Item 5.2.1. | E21: % | F21: =H20 -> 50,000.00 | G21: 0 | H21: =G21*H20 -> 0
H22: =IF(F22="",IF(E22="","","Rate Only"),"") -> 
B23: 5.3 | C23: 8.7 | D23: Plant - Heavy Equipment: [Provisional]
D24: (Plant shall not be more than 3 years old or have more than 3000 hrs logged. Operator to be qualified and competency certified.)
B25: 5.3.1 | D25: Excavator - Size Cat 225. | E25: hr | H25: Rate Only
B26: 5.3.2 | D26: Excavator - TLB. | E26: hr | H26: Rate Only
B27: 5.3.3 | D27: Grader 140G or similar. | E27: hr | H27: Rate Only
B28: 5.3.4 | D28: Front end loader - bucket capacity ≤ 1.5 m3. | E28: hr | H28: Rate Only
B29: 5.3.5 | D29: Front end loader - bucket capacity >1.5 m3. | E29: hr | H29: Rate Only
B30: 5.3.6 | D30: Tip truck - 5 m3 capacity. | E30: hr | H30: Rate Only
B31: 5.3.7 | D31: Tip truck - 10 m3 capacity. | E31: hr | H31: Rate Only
B32: 5.3.8 | D32: Vibratory compaction roller - 13.5 ton. | E32: hr | H32: Rate Only
B33: 5.3.9 | D33: Transport cost per any unit of plant to deliver to site and remove from site for items 5.3.1 to 5.3.8 | E33: Sum | H33: Rate Only
B35: 5.4 | C35: 8.7 | D35: Plant - Small Equipment: [Provisional]
B36: 5.4.1 | D36: Pedestrian roller - BW90 or similar. | E36: hr | H36: Rate Only
B37: 5.4.2 | D37: Vibratory plate compactor. | E37: hr | H37: Rate Only
B38: 5.4.3 | D38: Vibratory rammer. | E38: hr | H38: Rate Only
B39: 5.4.4 | D39: Transport cost per any unit of plant to deliver to site and remove from site for items 5.4.1 to 5.4.3. | E39: Sum | H39: Rate Only
B42: TOTAL SCHEDULE A - SECTION 5 CARRIED TO SUMMARY: | H42: 0
B44: ='Fixed P&Gs'!$B$44:$G$44 -> INVERAAN CONT B WS BoQ

Sheet Temp Works
B2: ='Fixed P&Gs'!B2 -> CAPRICORN DISTRICT MUNICIPALITY - LIMPOPO PROVINCE | H2: ='Fixed P&Gs'!H1 -> ORB.INV_02.22
B3: ='Fixed P&Gs'!B3 -> SCHEDULE OF QUANTITIES:
B4: ='Fixed P&Gs'!B4 -> INVERAAN VILLAGE WATER SUPPLY | F4: ='Fixed P&Gs'!F4:H4 -> CONTRACT No INF-W27/2022/2023
B5: SCHEDULE A: PRELIMINARY AND GENERAL OBLIGATIONS
B6: SECTION 6: PRELIMINARY AND GENERAL - TEMPORARY WORKS
B8: ITEM NUMBER | C8: PAYMENT CLAUSE | D8: DESCRIPTION | E8: UNIT | F8: QUANTITY | G8: RATE | H8: AMOUNT
B9: A.6 | D9: TEMPORARY WORKS: | H9: =IF(F9="",IF(E9="","","Rate Only"),"") -> 
D10: (As specified in SABS 1200 A and the Project Specifications.)
B12: 6.1 | C12: 8.8 | D12: Access Roads to the Works.
B13: 6.1.1 | C13: PSA 14.7 a | D13: Provision and maintenance of construction access to sites, camp or pipeline routes as required by the contractor. | E13: Sum | F13: 1.00 | G13: 0 | H13: =G13*F13 -> 0
B15: 6.2 | C15: 8.8 | D15: Safety Measures at Excavations:
B16: 6.2.1 | C16: PSA 14.7 b | D16: Provision of all safety measures required to fully protect all excavations against public access, injury or any other possible accident. | E16: Sum | F16: 1.00 | G16: 0 | H16: =G16*F16 -> 0
B24: TOTAL SCHEDULE A - SECTION 6 CARRIED TO SUMMARY: | H24: =SUM(H10:H23) -> 0
B26: ='Fixed P&Gs'!$B$44:$G$44 -> INVERAAN CONT B WS BoQ

Sheet Earthworks_Trench
B2: ='Fixed P&Gs'!B2 -> CAPRICORN DISTRICT MUNICIPALITY - LIMPOPO PROVINCE | I2: ='Fixed P&Gs'!H1 -> ORB.INV_02.22
B3: ='Fixed P&Gs'!B3 -> SCHEDULE OF QUANTITIES:
B4: ='Fixed P&Gs'!B4 -> INVERAAN VILLAGE WATER SUPPLY | G4: ='Fixed P&Gs'!F4 -> CONTRACT No INF-W27/2022/2023
B5: SCHEDULE B: BULK SUPPLY AND NETWORK DISTRIBUTION WORKS
B6: SECTION 1: EARTHWORKS FOR PIPE TRENCHES
B8: ITEM NUMBER | C8: LI | D8: PAYMENT CLAUSE | E8: DESCRIPTION | F8: UNIT | G8: QUANTITY | H8: RATE | I8: AMOUNT
B9: B.1 | E9: EARTHWORKS:
E10: (As specified in SABS 1200 DB and the Project Specifications.)
B12: 1.1 | E12: Site Clearance:
B13: 1.1.1 | D13: 8.3.1 a | E13: Clear vegetation, 800 mm wide. (Provisional) | F13: m | G13: =SUM(Pipelines1!G14:G19)+Pipelines1!G20 -> 80,934.00 | H13: 0 | I13: =H13*G13 -> 0
B14: 1.1.2 | D14: 8.3.1 b | E14: Clear trees of girth over 1.0 m. | F14: No. | G14: =ROUND(G13/2500,0) -> 32.00 | H14: 0 | I14: =H14*G14 -> 0
B15: 1.1.3 | D15: 8.3.1 c | E15: Remove 150 mm topsoil, 800 mm wide. | F15: m2 | G15: =G13*0.8*0.15 -> 9,712.08 | H15: 0 | I15: 0
B16: 1.1.4 | C16: LI | E16: Demolish existing concrete. | F16: m3 | G16: =ROUND(G13/5000,0) -> 16.00 | H16: 0 | I16: 0
B18: 1.2 | D18: PSDB 1.1 | E18: Excavation using Plant:
B19: 1.2.1 | E19: Excavate in all materials for trench depths up to 1000 mm, 800 mm wide. | F19: m | G19: =G13 -> 80,934.00 | H19: 0 | I19: 0
B20: 1.2.2 | E20: Excavate in all materials for trench depths exceeding 1000 mm up to 1500 mm, 800 mm wide. | F20: m | G20: =G19*0.05 -> 4,046.70 | H20: 0 | I20: 0
B21: 1.2.3 | E21: Extra-over items 1.2.1 and 1.2.2 for excavation in intermediate material. | F21: m3 | G21: =G19*0.025 -> 2,023.35 | H21: 0 | I21: 0
B22: 1.2.4 | E22: Extra-over items 1.2.1 and 1.2.2 for excavation in hard material. (Provisional) | F22: m3 | G22: =G19*0.8*0.3 -> 19,424.16 | H22: 0 | I22: 0
B23: 1.2.5 | E23: Excavate and dispose of unsuitable material from trench bottom. | F23: m3 | G23: =G19*0.15*0.8*0.5 -> 4,856.04 | H23: 0 | I23: 0
B24: 1.2.6 | E24: Spoil unsuitable backfill material. | F24: m3 | G24: =G19*0.15*0.8*0.1 -> 971.21 | H24: 0 | I24: 0
B26: 1.3 | C26: LI | D26: PSDB 1.1 | E26: Excavation using Labour Intensive Methods:
B27: 1.3.1 | E27: Extra-over Item 1.2.1 for excavation in soft material using labour intensive methods. | F27: m | G27: =G19 -> 80,934.00 | H27: 0 | I27: 0
B28: 1.3.2 | E28: Extra-over Item 1.2.2 for excavation in soft material using labour intensive methods. | F28: m | G28: =G20 -> 4,046.70 | H28: 0 | I28: 0
B29: 1.3.4 | E29: Extra-over Item 1.2.3 for excavation in intermediate material using labour intensive methods. | F29: m3 | G29: =G21 -> 2,023.35 | H29: 0 | I29: 0
B30: 1.3.5 | E30: Extra-over Item 1.2.5 for excavate and dispose of unsuitable materisl using labour intensive methods. | F30: m3 | G30: =G23 -> 4,856.04 | H30: 0 | I30: 0
B32: SUB-TOTAL SCHEDULE B - SECTION 1 CARRIED FORWARD: | I32: =SUM(I13:I30) -> 0
B34: ='Fixed P&Gs'!$B$44:$G$44 -> INVERAAN CONT B WS BoQ

Sheet Earthworks_Trench2
B2: ='Fixed P&Gs'!B2 -> CAPRICORN DISTRICT MUNICIPALITY - LIMPOPO PROVINCE | I2: ='Fixed P&Gs'!H1 -> ORB.INV_02.22
B3: ='Fixed P&Gs'!B3 -> SCHEDULE OF QUANTITIES:
B4: ='Fixed P&Gs'!B4 -> INVERAAN VILLAGE WATER SUPPLY | G4: ='Fixed P&Gs'!F4 -> CONTRACT No INF-W27/2022/2023
B5: SCHEDULE B: BULK SUPPLY AND NETWORK DISTRIBUTION WORKS
B6: SECTION 1: EARTHWORKS FOR PIPE TRENCHES
B8: ITEM NUMBER | C8: LI | D8: PAYMENT CLAUSE | E8: DESCRIPTION | F8: UNIT | G8: QUANTITY | H8: RATE | I8: AMOUNT
B9: SUB-TOTAL SCHEDULE B - SECTION 1 BROUGHT FORWARD: | I9: =Earthworks_Trench!I32 -> 0
B10: B.1 | E10: EARTHWORKS: (Continues)
E11: (As specified in SABS 1200 DB and the Project Specifications.)
B13: 1.4 | C13: LI | D13: PSDB 1.2 | E13: Backfill and Compaction:
B14: 1.4.1 | E14: Backfill and compact trenches using labour intensive methods. | F14: m3 | G14: =Earthworks_Trench!G13*0.8*0.85*1.05 -> 57,786.88 | H14: 0 | I14: =H14*G14 -> 0
B15: 1.4.2 | E15: Backfill road crosings using a commercial type G4 material compacted to 98% Mod. AASHTO density. | F15: m3 | G15: =Earthworks_Trench!G13*0.8*0.9*0.05*1.05 -> 3,059.31 | H15: 0 | I15: =H15*G15 -> 0
B17: 1.5 | E17: Excavation Ancillaries;
B18: 1.5.1 | D18: 8.3.3.1 a | E18: Make up deficiency in backfill material from other excavations. | F18: m3 | G18: =G14*0.045*1.05 -> 2,730.43 | H18: 0 | I18: 0
B19: 1.5.2 | D19: 8.3.3.1 b | E19: Make up deficiency in backfill material from borrow pits. Free-haul is 5.0 km. | F19: m3 | G19: =G14*0.025*1.05 -> 1,516.91 | H19: 0 | I19: 0
B20: 1.5.4 | D20: 8.3.3.2 | E20: Opening and closing designated borrow pits. | F20: Sum | G20: 1.00 | H20: 0 | I20: 0
B21: 1.5.5 | D21: 8.3.3.3 | E21: Compaction within road reserve to 90 % of Modified AASHTO density clause 5.7.1. | F21: m3 | G21: =G15 -> 3,059.31 | H21: 0 | I21: 0
B22: 1.5.6 | D22: 8.3.3.3 | E22: Compaction within road reserve to 98 % of Modified AASHTO density, as per clause 5.7.2. | F22: m3 | G22: =G21*0.6 -> 1,835.58 | H22: 0 | I22: 0
B24: 1.6 | E24: Overhaul:
B25: 1.6.1 | D25: 8.3.3.4 | E25: Overhaul in excess of the free-haul of 5.0 km. | F25: m3-km | G25: =ROUND(G19,0) -> 1,517.00 | H25: 0 | I25: 0
B27: 1.7 | E27: Existing Services:
B28: 1.7.1 | C28: LI | D28: 8.3.5 a | E28: Services that intersect a trench. | F28: No. | G28: =ROUND(Earthworks_Trench!G13/2500,0) -> 32.00 | H28: 0 | I28: 0
B30: 1.8 | E30: Finishing: | I30: =IF(G30="",IF(F30="","","Rate Only"),"") -> 
B31: 1.8.1 | D31: 8.3.6.1 c | E31: Reinstate road surfaces using 40 mm asphalt. | F31: m2 | H31: 0 | I31: =IF(G31="",IF(F31="","","Rate Only"),"") -> Rate Only
B32: 1.8.2 | C32: LI | E32: Topsoil trenches. (Provisional) | F32: m2 | G32: =Earthworks_Trench!G13*0.8*0.15*1.05 -> 10,197.68 | H32: 0 | I32: =H32*G32 -> 0
B34: TOTAL SCHEDULE B - SECTION 1 CARRIED TO SUMMARY: | I34: =SUM(I9:I32) -> 0
B36: ='Fixed P&Gs'!$B$44:$G$44 -> INVERAAN CONT B WS BoQ

Sheet Bedding
B2: ='Fixed P&Gs'!B2 -> CAPRICORN DISTRICT MUNICIPALITY - LIMPOPO PROVINCE | I2: ='Fixed P&Gs'!H1 -> ORB.INV_02.22
B3: ='Fixed P&Gs'!B3 -> SCHEDULE OF QUANTITIES:
B4: ='Fixed P&Gs'!B4 -> INVERAAN VILLAGE WATER SUPPLY | G4: ='Fixed P&Gs'!F4 -> CONTRACT No INF-W27/2022/2023
B5: SCHEDULE B: BULK SUPPLY AND NETWORK DISTRIBUTION WORKS
B6: SECTION 2: PIPE BEDDING
B8: ITEM NUMBER | C8: LI | D8: PAYMENT CLAUSE | E8: DESCRIPTION | F8: UNIT | G8: QUANTITY | H8: RATE | I8: AMOUNT
B9: B.2 | E9: BEDDING:
E10: (As specified in SABS 1200 LB and the Project Specifications.)
B12: 2.1 | D12: 8.2.1 | E12: Bedding from Trench Excavations:
E13: (Bedding to be Class C for flexible pipes as indicated in the contract drawings)
B14: 2.1.1 | C14: LI | E14: Provision of bedding from pipe trench excavation within 1.0 km, using selected granular material. | F14: m3 | G14: =Earthworks_Trench!G19*0.8*0.3 -> 19,424.16 | I14: =G14*H14 -> 0
B15: 2.1.2 | C15: LI | E15: Provision of bedding from pipe trench excavation within 1.0 km, using selected fill material. | F15: m3 | G15: =G14*0.35 -> 6,798.46 | I15: =G15*H15 -> 0
B17: 2.2 | D17: 8.2.2 | E17: Imported Bedding Material:
E18: (Bedding to be Class C for flexible pipes as indicated in the contract drawings)
B19: 2.2.1 | E19: Provision of bedding imported from designated borrow pit using selected granular material. | F19: m3 | G19: =ROUND(G14*0.25,0) -> 4,856.00 | I19: 0
B20: 2.2.2 | E20: Provision of bedding imported from designated borrow pit using selected fill material. | F20: m3 | G20: =ROUND(G15*0.25,0) -> 1,700.00 | I20: 0
B26: TOTAL SCHEDULE B - SECTION 2 CARRIED TO SUMMARY: | I26: =SUM(I10:I25) -> 0
B28: ='Fixed P&Gs'!$B$44:$G$44 -> INVERAAN CONT B WS BoQ

Sheet Pipelines1
B2: ='Fixed P&Gs'!B2 -> CAPRICORN DISTRICT MUNICIPALITY - LIMPOPO PROVINCE | I2: ='Fixed P&Gs'!H1 -> ORB.INV_02.22
B3: ='Fixed P&Gs'!B3 -> SCHEDULE OF QUANTITIES:
B4: ='Fixed P&Gs'!B4 -> INVERAAN VILLAGE WATER SUPPLY | G4: ='Fixed P&Gs'!F4 -> CONTRACT No INF-W27/2022/2023
B5: SCHEDULE B: BULK SUPPLY AND NETWORK DISTRIBUTION WORKS
B6: SECTION 3: MEDIUM PRESSURE PIPELINES AND ANCILLARIES
B8: ITEM NUMBER | C8: LI | D8: PAYMENT CLAUSE | E8: DESCRIPTION | F8: UNIT | G8: QUANTITY | H8: RATE | I8: AMOUNT
B9: B.3 | E9: MEDIUM PRESSURE PIPES:
E10: (As specified in SABS 1200 L, SABS 1200 GA and the Project Specifications.)
B12: 3.1 | C12: LI | D12: 8.2.1 | E12: Supply, Lay and Bed uPVC Pipes Complete:
E13: (The rates shall include disinfecting of pipes after completion of hydraulic pipe test.)
B14: 3.1.1 | E14: 75 mm uPVC medium pressure pipes - Class 9. | F14: m | G14: 58,675.00 | H14: 0 | I14: =H14*G14 -> 0
B15: 3.1.2 | E15: 160 mm uPVC medium pressure pipes - Class 12 | F15: m | G15: 0.00 | H15: 0 | I15: Rate Only
B16: 3.1.3 | E16: 160 mm uPVC medium pressure pipes - Class 9. | F16: m | G16: 6,295.00 | H16: 0 | I16: =H16*G16 -> 0
B17: 3.1.4 | E17: 25 mm HDPE PN 20 | F17: m | G17: 15,964.00 | H17: 0 | I17: 0
B18: 3.1.4 | E18: 110 mm uPVC medium pressure pipes - Class 16. | F18: m | H18: 0 | I18: 0
B19: 3.1.5 | E19: 160 mm uPVC medium pressure pipes - Class 12. | F19: m | H19: 0 | I19: 0
B20: 3.1.5 | E20: 200 mm uPVC medium pressure pipes - Class 12 | F20: m | G20: 0.00 | H20: 0 | I20: Rate Only
B22: 3.2 | C22: LI | D22: 8.2.2 | E22: Fittings and Specials - uPVC Lyng Bends:
E23: (Extra-over rate to Items 3.1)
B24: 3.2.1 | E24: 75 mm Upvc class 16:
B25: 3.2.1.1 | E25: uPVC bends less than 25 degree angle. | F25: No. | G25: 350.00 | H25: 0 | I25: 0
B26: 3.2.1.2 | E26: uPVC bends with 45 degree angle. | F26: No. | G26: 45.00 | H26: 0 | I26: 0
B27: 3.2.1.3 | E27: uPVC bends with 90 degree angle. | F27: No. | G27: 55.00 | H27: 0 | I27: 0
B28: 3.2.2 | E28: 160 mm uPVC class 16: | H28: 0
B29: 3.2.2.1 | E29: uPVC bends less than 25 degree angle. | F29: No. | G29: 12.00 | H29: 0 | I29: 0
B30: 3.2.2.2 | E30: uPVC bends with 45 degree angle. | F30: No. | G30: 20.00 | H30: 0 | I30: 0
B31: 3.2.2.3 | E31: uPVC bends with 90 degree angle. | F31: No. | G31: 18.00 | H31: 0 | I31: 0
B32: 3.2.3 | E32: 200 mm uPVC class 16: | H32: 0
B33: 3.2.3.1 | E33: uPVC bends less than 25 degree angle. | F33: No. | G33: 0.00 | H33: 0 | I33: Rate Only
B34: 3.2.3.2 | E34: uPVC bends with 45 degree angle. | F34: No. | G34: 0.00 | H34: 0 | I34: Rate Only
B35: 3.2.3.3 | E35: uPVC bends with 90 degree angle. | F35: No. | G35: 0.00 | H35: 0 | I35: Rate Only
B37: 3.3 | C37: LI | D37: 8.2.2 | E37: Specials and Fittings - Cast Iron Equal Tees: | H37: 0
E38: (Bitumen dipped and LYNG sockets on all sides all to SABS 546 and SABS 966.) | H38: 0
B39: 3.3.1 | E39: 75 mm dia. | F39: No. | G39: 25.00 | H39: 0 | I39: 0
B40: 3.3.2 | E40: 160 mm dia. | F40: No. | G40: 6.00 | H40: 0 | I40: 0
B41: 3.3.3 | E41: 200 mm dia | F41: No. | G41: 0.00 | H41: 0 | I41: Rate Only
B42: SUB-TOTAL SCHEDULE B - SECTION 3 CARRIED FORWARD: | I42: =SUM(I9:I41) -> 0
B44: ='Fixed P&Gs'!$B$44:$G$44 -> INVERAAN CONT B WS BoQ

Sheet Pipelines2
B2: ='Fixed P&Gs'!B2 -> CAPRICORN DISTRICT MUNICIPALITY - LIMPOPO PROVINCE | I2: ='Fixed P&Gs'!H1 -> ORB.INV_02.22
B3: ='Fixed P&Gs'!B3 -> SCHEDULE OF QUANTITIES:
B4: ='Fixed P&Gs'!B4 -> INVERAAN VILLAGE WATER SUPPLY | G4: ='Fixed P&Gs'!F4 -> CONTRACT No INF-W27/2022/2023
B5: SCHEDULE B: BULK SUPPLY AND NETWORK DISTRIBUTION WORKS
B6: SECTION 3: MEDIUM PRESSURE PIPELINES AND ANCILLARIES
B8: ITEM NUMBER | C8: LI | D8: PAYMENT CLAUSE | E8: DESCRIPTION | F8: UNIT | G8: QUANTITY | H8: RATE | I8: AMOUNT
B9: SUB-TOTAL SCHEDULE B - SECTION 3 BROUGHT FORWARD: | I9: =Pipelines1!I42 -> 0
B10: B.3 | E10: MEDIUM PRESSURE PIPES:
E11: (As specified in SABS 1200 L, SABS 1200 GA and the Project Specifications.)
B13: 3.4 | C13: LI | D13: 8.2.2 | E13: Specials and Fittings - Hydrant Tees:
E14: (Cast iron hydrant tees, Bitumen dipped and LYNG sockets to SABS 546 and SABS 966 with flanged branch, 80 mm dia, drilled to SABS 1123, Table 16.)
B15: 3.4.1 | E15: 75 mm dia. | F15: No. | G15: 5.00 | H15: 0 | I15: =G15*H15 -> 0
B16: 3.4.2 | E16: 160 mm dia. | F16: No. | G16: 2.00 | H16: 0 | I16: =G16*H16 -> 0
B17: 3.4.3 | E17: 200 mm dia. | F17: No. | G17: 0.00 | H17: 0 | I17: Rate Only
B19: 3.5 | C19: LI | D19: 8.2.2 | E19: Specials and Fittings - Cast Iron Scour Tees:
E20: (Cast iron scour tee, Bitumen dipped and LYNG sockets to SABS 546 and SABS 966 with flanged branch, 100 mm dia, drilled to SABS 1123, Table 16.)
B21: 3.5.1 | E21: 75 mm dia. | F21: No. | G21: 5.00 | H21: 0 | I21: =G21*H21 -> 0
B22: 3.5.2 | E22: 160 mm dia. | F22: No. | G22: 6.00 | H22: 0 | I22: 0
B23: 3.5.3 | E23: 200 mm dia. | F23: No. | G23: 0.00 | H23: 0 | I23: Rate Only
B25: 3.6 | C25: LI | D25: 8.2.2 | E25: Specials and Fittings - Cast Iron End Caps:
B26: 3.6.1 | E26: 75 mm dia. | F26: No. | G26: 35.00 | H26: 0 | I26: =H26*G26 -> 0
B27: 3.6.2 | E27: 160 mm dia. | F27: No. | G27: 6.00 | H27: 0 | I27: =H27*G27 -> 0
H28: 0
B29: 3.7 | C29: LI | D29: 8.2.2 | E29: Specials and Fittings - Cast Iron Reducers:
E30: (Bitumen dipped, spigot and socket and socketed cast iron reducers all to SABS 546 and SABS 966.)
B31: 3.7.1 | E31: 75 mm x 160 mm dia. [S] | F31: No. | G31: 30.00 | H31: 0 | I31: =H31*G31 -> 0
B32: 3.7.2 | E32: 75 mm x 200 mm dia. [S] | F32: No. | G32: 0.00 | H32: 0 | I32: Rate Only
B33: 3.7.3 | E33: 160 mm x 200 mm dia. [S] | F33: No. | G33: 0.00 | H33: 0 | I33: Rate Only
B35: 3.8 | C35: LI | D35: 8.2.2 | E35: Specials and Fittings - Flang Adaptors:
E36: (Bitumen dipped and LYNG sockets to SABS 546 and SABS 966 with flange drilled to SABS 1123, Table 16.)
B37: 3.8.1 | E37: 75 mm dia. | F37: No. | G37: 35.00 | H37: 0 | I37: =H37*G37 -> 0
B38: 3.8.2 | E38: 160 mm dia. | F38: No. | G38: 6.00 | H38: 0 | I38: =H38*G38 -> 0
B39: 3.8.3 | E39: 91 mm dia. | F39: No. | G39: 5.00 | H39: 0 | I39: =H39*G39 -> 0
B40: 3.8.4 | E40: 200 mm dia. | F40: No. | G40: 0.00 | H40: 0 | I40: Rate Only
B42: SUB-TOTAL SCHEDULE B - SECTION 3 CARRIED FORWARD: | I42: =SUM(I9:I40) -> 0
B44: ='Fixed P&Gs'!$B$44:$G$44 -> INVERAAN CONT B WS BoQ

Sheet Pipelines3
B2: ='Fixed P&Gs'!B2 -> CAPRICORN DISTRICT MUNICIPALITY - LIMPOPO PROVINCE | I2: ='Fixed P&Gs'!H1 -> ORB.INV_02.22
B3: ='Fixed P&Gs'!B3 -> SCHEDULE OF QUANTITIES:
B4: ='Fixed P&Gs'!B4 -> INVERAAN VILLAGE WATER SUPPLY | G4: ='Fixed P&Gs'!F4 -> CONTRACT No INF-W27/2022/2023
B5: SCHEDULE B: BULK SUPPLY AND NETWORK DISTRIBUTION WORKS
B6: SECTION 3: MEDIUM PRESSURE PIPELINES AND ANCILLARIES
B8: ITEM NUMBER | C8: LI | D8: PAYMENT CLAUSE | E8: DESCRIPTION | F8: UNIT | G8: QUANTITY | H8: RATE | I8: AMOUNT
B9: SUB-TOTAL SCHEDULE B - SECTION 3 BROUGHT FORWARD: | I9: =Pipelines2!I42 -> 0
B10: B.3 | E10: MEDIUM PRESSURE PIPES:
E11: (As specified in SABS 1200 L, SABS 1200 GA and the Project Specifications.)
B13: 3.9 | C13: LI | D13: 8.2.2 | E13: Specials and Fittings - Saddles:
E14: (Cast iron, bitumen dipped saddle to be 25 mm BSP drilling and tapping.)
B15: 3.9.1 | E15: 75 mm dia. | F15: No. | G15: 1,571.00 | H15: 0 | I15: =H15*G15 -> 0
B16: 3.9.2 | E16: 160 mm dia. | F16: No. | G16: 90.00 | H16: 0 | I16: =H16*G16 -> 0
B18: 3.10 | C18: LI | D18: 8.2.3 | E18: Specials and Fittings - Isolating Valves:
E19: (Flanged RSV isolating valves. Valves to be non-rising spindles with cap top.)
B20: 3.10.1 | E20: 80 mm dia. Class 16 | F20: No. | G20: 15.00 | H20: 0 | I20: =H20*G20 -> 0
B21: 3.10.2 | E21: 160 mm dia. Class 16 | F21: No. | G21: 6.00 | H21: 0 | I21: 0
B22: 3.10.3 | E22: 161 mm dia. Class 16 | F22: No. | G22: 6.00 | H22: 0 | I22: =H22*G22 -> 0
B23: 3.10.4 | E23: 200 mm dia. Class 16 | F23: No. | H23: 0 | I23: 0
B25: 3.11 | C25: LI | D25: 8.2.3 | E25: Specials and Fittings - Socketed Valves:
E26: (Socket ends RSV isolating valves. Valves to be non-rising spindles with cap top.)
B27: 3.11.1 | E27: 75 mm dia. Class 16 | F27: No. | G27: 20.00 | H27: 0 | I27: 0
B28: 3.11.2 | E28: 160 mm dia. Class 16 | F28: No. | G28: 3.00 | H28: 0 | I28: 0
B29: 3.11.3 | E29: 200 mm dia. Class 16 | F29: No. | H29: 0 | I29: 0
B31: 3.12 | C31: LI | D31: 8.2.3 | E31: Specials and Fittings - Air Valve:
E32: (Vent O' Mat SERIES RBX with screwed BSP male inlet, or similar. Complete with flange, barrel nipple, and 50 mm gate valve)
B33: 3.12.1 | E33: 50 mm Air Valve | F33: No. | G33: 15.00 | H33: 0 | I33: 0
B35: 3.13 | C35: LI | D35: 8.2.3 | E35: Specials and Fittings - Bulk Water Meter: | H35: 0 | I35: 0
E36: (Kent or similar approved, flanged and drilled to SABS 1123, Table 16) | H36: 0 | I36: 0
B37: 3.13.1 | E37: 80 mm dia. In-Line Bulk Water Meter. | F37: No. | G37: 1.00 | H37: 0 | I37: Rate Only
B38: 3.13.2 | E38: 150 mm dia. In-Line Bulk Water Meter. | F38: No. | G38: 1.00 | H38: 0 | I38: Rate Only
B39: 3.13.3 | E39: 200 mm dia. In-Line Bulk Water Meter. | F39: No. | G39: 1.00 | H39: 0 | I39: Rate Only
B41: 3.14 | C41: LI | D41: 8.2.3 | E41: Flow Control Valves
E42: (Bermad or similar approved, flanged and drilled to SABS 1123, Table 16)
B43: 3.14.1 | E43: Provisional Sum for the supply of 150 mm dia. In-Line Flow Control Valves. | F43: No. | G43: 1.00 | I43: Rate Only
B45: 3.14.2 | E45: Provisional Sum for the supply of 75 mm dia. In-Line Flow Control Valves. | F45: No. | G45: 1.00 | I45: Rate Only
B47: SUB-TOTAL SCHEDULE B - SECTION 3 CARRIED FORWARD: | I47: =SUM(I9:I39) -> 0
B49: ='Fixed P&Gs'!$B$44:$G$44 -> INVERAAN CONT B WS BoQ

Sheet Pipelines4
B2: ='Fixed P&Gs'!B2 -> CAPRICORN DISTRICT MUNICIPALITY - LIMPOPO PROVINCE | I2: ='Fixed P&Gs'!H1 -> ORB.INV_02.22
B3: ='Fixed P&Gs'!B3 -> SCHEDULE OF QUANTITIES:
B4: ='Fixed P&Gs'!B4 -> INVERAAN VILLAGE WATER SUPPLY | G4: ='Fixed P&Gs'!F4 -> CONTRACT No INF-W27/2022/2023
B5: SCHEDULE B: BULK SUPPLY AND NETWORK DISTRIBUTION WORKS
B6: SECTION 3: MEDIUM PRESSURE PIPELINES AND ANCILLARIES
B8: ITEM NUMBER | C8: LI | D8: PAYMENT CLAUSE | E8: DESCRIPTION | F8: UNIT | G8: QUANTITY | H8: RATE | I8: AMOUNT
B9: SUB-TOTAL SCHEDULE B - SECTION 3 BROUGHT FORWARD: | I9: =Pipelines3!I47 -> 0
B10: B.3 | E10: MEDIUM PRESSURE PIPES:
E11: (As specified in SABS 1200 L, SABS 1200 GA and the Project Specifications.)
B12: 3.14 | C12: LI | D12: 8.2.2 | E12: Specials and Fittings - Stand Pipes
B13: 3.14.1 | E13: Stand pipe fittings complete, excluding saddles, including all labour, plant and incidentals as per DWAF details. | F13: No. | G13: 1,961.00 | H13: 0 | I13: =H13*G13 -> 0
B14: 3.14.2 | E14: Supply and Installation of 15mm Kent Water meter brass type for household connections all complete as per project specifications | F14: No. | G14: =G13 -> 1,961.00 | H14: 0 | I14: =H14*G14 -> 0
B16: 3.15 | C16: LI | D16: 8.2.2 | E16: Pipe Specials - Galvanised:
B17: 3.15.1 | E17: 80 mm dia. x 300 mm long GMS pipe, flanged both ends, drilled to SABS 1123 Table 16. | F17: No. | G17: =Pipelines3!G33 -> 15.00 | H17: 0 | I17: =H17*G17 -> 0
B18: 3.15.2 | E18: 150 mm dia air valve chamber vent as per details. | F18: No. | G18: =G17 -> 15.00 | H18: 0 | I18: 0
H19: 0 | I19: 0
B20: 3.16 | C20: LI | D20: 8.2.13 | E20: Valve Chambers: | H20: 0 | I20: 0
B21: 3.16.1 | E21: Valve chamber - 1200 mm x 1400 mm x 1000 mm depth, complete including excavation, materials, plant, labour and incidentals, as per detail drawings. | F21: No. | G21: 10.00 | H21: 0 | I21: 0
B22: 3.16.2 | E22: Extra-over Item 3.15.1 for depth increments of 250 mm. | F22: No. | H22: 0 | I22: 0
B24: 3.17 | C24: LI | E24: Standpipes:
B25: 3.17.1 | E25: Stand pipe complete, excluding specials and fittings, including all labour, plant, materials and incidentals, as per detail drawings. | F25: No. | G25: =G13 -> 1,961.00 | H25: 0 | I25: 0
B27: 3.18 | C27: LI | D27: 8.2.1 | E27: Hydraulic Pipe Testing: | H27: 0 | I27: 0
B28: 3.18.1 | E28: 75 mm dia. Pipes | F28: m | G28: =IF(Pipelines1!G14="","",Pipelines1!G14) -> 58,675.00 | H28: 0 | I28: 0
B29: 3.18.2 | E29: 160 mm dia. Pipes | F29: m | G29: =IF(Pipelines1!G16="","",Pipelines1!G16) -> 6,295.00 | H29: 0 | I29: 0
B30: 3.18.3 | E30: 25 mm HDPE PN 20 | F30: m | G30: =IF(Pipelines1!G17="","",Pipelines1!G17) -> 15,964.00 | H30: 0 | I30: 0
B31: 3.18.4 | E31: Pipe specials and fittings for testing. | F31: Sum | G31: 1.00 | H31: 0 | I31: 0
B33: 3.19 | C33: LI | D33: 8.2.1 | E33: Disinfecting Pipe Works.
B34: 3.19.1 | E34: 75 mm dia. Pipes | F34: m | G34: =IF(G28="","",G28) -> 58,675.00 | H34: 0 | I34: 0
B35: 3.19.2 | E35: 160 mm dia. Pipes | F35: m | G35: =IF(G29="","",G29) -> 6,295.00 | H35: 0 | I35: 0
B36: 3.19.3 | E36: 200 mm dia. Pipes | F36: m | G36: 0.00 | H36: 0 | I36: Rate Only
B37: 3.19.4 | E37: 110 mm dia. Pipes | F37: m | G37: =IF(#REF!="","",#REF!) ->  | I37: =IF(G37="",IF(F37="","","Rate Only"),"") -> 
B38: SUB-TOTAL SCHEDULE B - SECTION 3 CARRIED FORWARD: | I38: =SUM(I9:I36) -> 0
B40: ='Fixed P&Gs'!$B$44:$G$44 -> INVERAAN CONT B WS BoQ

Sheet Pipelines5
B2: ='Fixed P&Gs'!B2 -> CAPRICORN DISTRICT MUNICIPALITY - LIMPOPO PROVINCE | I2: ='Fixed P&Gs'!H1 -> ORB.INV_02.22
B3: ='Fixed P&Gs'!B3 -> SCHEDULE OF QUANTITIES:
B4: ='Fixed P&Gs'!B4 -> INVERAAN VILLAGE WATER SUPPLY | G4: ='Fixed P&Gs'!F4 -> CONTRACT No INF-W27/2022/2023
B5: SCHEDULE B: BULK SUPPLY AND NETWORK DISTRIBUTION WORKS
B6: SECTION 3: MEDIUM PRESSURE PIPELINES AND ANCILLARIES
B8: ITEM NUMBER | C8: LI | D8: PAYMENT CLAUSE | E8: DESCRIPTION | F8: UNIT | G8: QUANTITY | H8: RATE | I8: AMOUNT
B9: SUB-TOTAL SCHEDULE B - SECTION 3 BROUGHT FORWARD: | I9: =Pipelines4!I38 -> 0
B10: B.3 | E10: MEDIUM PRESSURE PIPES:
E11: (As specified in SABS 1200 L, SABS 1200 GA and the Project Specifications.)
B13: 3.20 | C13: LI | D13: 8.2.11 | E13: Thrust Blocks:
B14: 3.20.1 | E14: Excavation. | F14: m3 | G14: =ROUNDUP(Earthworks_Trench!G13*0.8*0.0078358,0) -> 508.00 | H14: 0 | I14: =H14*G14 -> 0
B15: 3.20.2 | E15: Formwork. | F15: m2 | G15: =G14*2 -> 1,016.00 | H15: 0 | I15: =H15*G15 -> 0
B16: 3.20.3 | E16: Concrete. [Class 20/19 MPa] | F16: m3 | G16: =ROUND(G14*0.1404761904762,0) -> 71.00 | H16: 0 | I16: 0
B18: 3.21 | C18: LI | E18: Pipe Works Ancillaries:
B19: 3.21.1 | E19: 550 mm x 550 mm Fabricated manhole cover with frame, galvanised. | F19: No. | G19: =Pipelines4!G21 -> 10.00 | H19: 0 | I19: 0
B20: 3.21.2 | E20: Access ladder - 304 SS, galvanised. | F20: No. | G20: =G19 -> 10.00 | H20: 0 | I20: 0
B21: 3.21.3 | E21: Concrete pipe line markers as per details. | F21: No. | G21: =ROUND(Earthworks_Trench!G13/250,0) -> 324.00 | H21: 0 | I21: 0
B27: TOTAL SCHEDULE B - SECTION 3 CARRIED TO SUMMARY: | I27: =SUM(I9:I26) -> 0
B29: ='Fixed P&Gs'!$B$44:$G$44 -> INVERAAN CONT B WS BoQ

Sheet Ancillaries
B2: ='Fixed P&Gs'!B2 -> CAPRICORN DISTRICT MUNICIPALITY - LIMPOPO PROVINCE | I2: ='Fixed P&Gs'!H1 -> ORB.INV_02.22
B3: ='Fixed P&Gs'!B3 -> SCHEDULE OF QUANTITIES:
B4: ='Fixed P&Gs'!B4 -> INVERAAN VILLAGE WATER SUPPLY | G4: ='Fixed P&Gs'!F4 -> CONTRACT No INF-W27/2022/2023
B5: SCHEDULE B: BULK SUPPLY AND NETWORK DISTRIBUTION WORKS
B6: SECTION 4: ANCILLARY WATER SUPPLY WORKS
B8: ITEM NUMBER | C8: LI | D8: PAYMENT CLAUSE | E8: DESCRIPTION | F8: UNIT | G8: QUANTITY | H8: RATE | I8: AMOUNT
B9: B.4 | E9: ANCILLARY WORKS:
E10: (As specified in the Project Specifications.)
B11: 4.1 | D11: PSH 4.1 | E11: Elevated Pressed Steel Reservoir:
E12: (Reservoir shall be a Braithwaite type, or similar,pressed steel. All manufacturing to SABS standards with hot dip galvaising to SANS 121(ISO 1461), Installation to be performed by the supplier)
B13: 4.1.1 | E13: Supply and erect 1105 kl capacity elevated pressed steel reservoir with base 10.0m above natural ground level. | F13: No. | G13: 0.00 | H13: 0 | I13: Rate only
B14: 4.1.2 | E14: Excavating in soft material for maximum depth of 2.0m for the tank footings. | F14: m3 | G14: 0.00 | H14: 0 | I14: Rate only
B15: 4.1.3 | E15: Extra over subitem 4.1.3 for excavation in hard material, irrespective of depth. | F15: m3 | G15: 0.00 | H15: 0 | I15: Rate only
B16: 4.1.4 | E16: Supply, bend and fixing of High yield stress steel reinforcement for the tank footings. | F16: t | G16: 0.00 | H16: 0 | I16: Rate only
B17: 4.1.5 | E17: Supply, bend and fixing of Mild stress steel reinforcement for the tank footings. | F17: t | G17: 0.00 | H17: 0 | I17: Rate only
B18: 4.1.6 | E18: Vertical formwork to provide Class F1 surface finish to the tank footings. | F18: m2 | G18: 0.00 | H18: 0 | I18: Rate only
B19: 4.1.7 | E19: Supply and placement of blinding layer concrete. [Class 15/10 MPa] for the tank footings. | F19: m3 | G19: 0.00 | H19: 0 | I19: Rate only
B20: 4.1.8 | E20: Supply and placement of reinforced concrete. [Class 25/19 MPa] for the tank footings. | F20: m3 | G20: 0.00 | H20: 0 | I20: Rate only
B21: 4.1.9 | E21: Supply and install Ø24mm x 700mm long holding bolts to be casted in the tank footings. | F21: No. | G21: 0.00 | H21: 0 | I21: Rate only
B22: 4.1.11 | E22: Provision for extension of the existing tank stand | F22: Prov.Sum | G22: 1.00 | I22: =H22*G22 -> 0
B24: 4.2 | E24: Borehole Development:
E25: Re-drilling and Equipping Boreholes
B26: 4.2.1 | E26: Re-drilling and or rehabilitation of Borehole H11-2768 including yield test and chemical analysis reporting. Borehole depth up to 120m | F26: Sum | G26: 1.00 | H26: 0 | I26: Rate only
B27: 4.2.2 | E27: Supply and equip new Boreholes with a suitably sized 3 phase electric motor. Unit complete with starter panel, cabling, valves, flow meter and delivery pipework as per drawing No…. | F27: No. | G27: 1.00 | H27: 0 | I27: Rate only
B28: 4.2.3 | E28: Supply, delivery and installation of 2.4m high concrete palisade fence c/w 4.5m wide steel sliding gate, inclusive of area clearance, and civil foundations as per drawings INV-STD-10&12 | F28: m | G28: 100.00 | H28: 0 | I28: Rate only
B29: 4.2.4 | E29: Allow a Provisional Sum for removing, cleaning and handing over to the Engineer existing Boreholes H11- 2768 & 1372 diesel engine equipment. | F29: Sum | G29: 1.00 | H29: 0 | I29: Rate only
B30: 4.2.5 | E30: Supply and install precast concrete pump house as per DWS specifications, complete with heavy duty lockable steel access door for boreholes above. | F30: No. | G30: 1.00 | H30: 0 | I30: Rate only
B31: 4.2.6 | E31: Provision for ESKOM Connection | F31: Prov.Sum | G31: 1.00 | H31: 150,000.00 | I31: Rate only
B32: 4.2.7 | E32: Overheads, charges and profit on item 4.2.13 | F32: % | G32: =I31 -> Rate only | H32: 0 | I32: Rate only
B34: 4.3 | E34: Water Package Plant in Bodi Village:
B35: 4.3.1 | E35: Installation of 1166 KL/day Water Treatment Package Plant for Reverse Osmosis. | F35: Prov.Sum | G35: 1.00 | H35: Rate only | I35: Rate only
E36: Overheads, charges and profit on item 4.2.13 | F36: % | G36: =I35 -> Rate only | H36: 0 | I36: Rate only
B37: 4.3.2 | E37: Allow for formation of a reed bed effluent discharge in 4.3.1 above | F37: Prov.Sum | G37: 1.00 | H37: Rate only | I37: Rate only
B39: TOTAL SCHEDULE B - SECTION 4 CARRIED TO SUMMARY: | I39: =SUM(I9:I37) -> 0
B41: ='Fixed P&Gs'!$B$44:$G$44 -> INVERAAN CONT B WS BoQ

Sheet SUM
B2: ='Fixed P&Gs'!B2 -> CAPRICORN DISTRICT MUNICIPALITY - LIMPOPO PROVINCE | H2: ='Fixed P&Gs'!H1 -> ORB.INV_02.22
B3: SUMMARY SCHEDULE OF QUANTITIES
B4: ='Fixed P&Gs'!B4 -> INVERAAN VILLAGE WATER SUPPLY | F4: ='Fixed P&Gs'!F4:H4 -> CONTRACT No INF-W27/2022/2023
B5: CALCULATION OF TENDER SUM
B7: CONT B. RETICULATION - SPLIT 2
B8: SCHEDULE | C8: SECTION | D8: SECTION DESCRIPTION | G8: TENDERED AMOUNT
B9: A | C9: PRELIMINARY AND GENERAL:
B10: A | C10: 1 | D10: FIXED CHARGE AND VALUE RELATED OBLIGATIONS | G10: ='Fixed P&Gs'!H42 -> 0
B11: A | C11: 2 | D11: TIME RELATED OBLIGATIONS | G11: ='Time Related'!H42 -> 0
B12: A | C12: 3 | D12: PROVISIONAL SUMS | G12: ='Prov Sums'!H40 -> 0
B13: A | C13: 4 | D13: PRIME COST SUMS | G13: ='PC Items'!H27 -> 0
B14: A | C14: 5 | D14: DAYWORKS | G14: =Dayworks!H42 -> 0
B15: A | C15: 6 | D15: TEMPORARY WORKS | G15: ='Temp Works'!H24 -> 0
B16: TOTAL SCHEDULE A: | G16: =SUM(G9:H15) -> 0
B17: B | C17: BULK SUPPLY AND NETWORK DISTRIBUTION WORKS:
B18: B | C18: 1 | D18: EARTHWORKS FOR PIPE TRENCHES | G18: =Earthworks_Trench!I32 -> 0
B19: B | C19: 2 | D19: PIPE BEDDING | G19: =Pipelines1!I42 -> 0
B20: B | C20: 3 | D20: MEDIUM PRESSURE PIPELINES AND ANCILLARIES | G20: =Pipelines5!I27 -> 0
B21: B | C21: 4 | D21: ANCILLARY WATER SUPPLY WORKS | G21: =Ancillaries!I39 -> 0
B22: TOTAL SCHEDULE B: | G22: =SUM(G18:H21) -> 0
B24: TOTAL AMOUNT - SCHEDULE A: | G24: =G16 -> 0
B25: TOTAL AMOUNT – SCHEDULE B: | G25: =G22 -> 0
B26: TENDER SUM: | G26: =G24+G25 -> 0
B27: 2.5% CPA (Applied to A+B) | H27: =G25*2.5% -> 0
B28: CONTINGENCIES [10.00%]: | G28: =G26*10% -> 0
B29: SUB-TOTAL: | G29: =G26+G28+H27 -> 0
B30: VAT [15.00%]: | G30: =G29*15% -> 0
B31: TENDER PRICE: | G31: =G29+G30 -> 0
B33: ='Fixed P&Gs'!$B$44:$G$44 -> INVERAAN CONT B WS BoQ
H34: =G31*1% -> 0
